fUSD/lending_fUSD_20250811
["ID","MTS","AMOUNT","RATE_DAILY","PERIOD"]
[378461022,1754874636363,-500.0,0.00018859,2]
[378461023,1754874636372,-982.75,0.00018859,2]
[378461024,1754874636382,-1603.4,0.00018859,2]
[378461025,1754874636391,-400.0,0.00018859,2]
[378461026,1754874636401,-400.0,0.00018859,2]
[378461027,1754874636410,-400.0,0.00018859,2]
[378461028,1754874636419,-400.0,0.00018859,2]
[378461029,1754874636429,-400.0,0.00018859,2]
[378461030,1754874636438,-610.03,0.00018859,2]
[378461031,1754874636447,-1737.85,0.00018859,2]
[378461032,1754874636457,-400.0,0.00018859,2]
[378461033,1754874636466,-1054.28,0.00018859,2]
[378461034,1754874636475,-1026.94,0.00018859,2]
[378461035,1754874636485,-400.0,0.00018859,2]
[378461036,1754874636494,-400.0,0.00018859,2]
[378461037,1754874636503,-899.92,0.00018859,2]
[378461038,1754874636512,-1088.83460302,0.00018859,2]
[378461040,1754874637207,12843.31,0.0001786,2]
[378461043,1754874637655,-597.9513268,0.00018859,2]
[378461044,1754874637671,-1837.5,0.00018859,2]
[378461055,1754874638196,-548.27340427,0.00018858,2]
[378461056,1754874638206,-299.30407018,0.00018859,2]
[378461057,1754874638216,-1446.26,0.00018859,2]
[378461058,1754874638226,-400.0,0.00018859,2]
[378461059,1754874638235,-584.78,0.00018859,2]
[378461060,1754874638245,-400.0,0.00018859,2]
[378461061,1754874638255,-400.0,0.00018859,2]
[378461062,1754874638264,-400.0,0.00018859,2]
[378461063,1754874638274,-400.0,0.00018859,2]
[378461064,1754874638284,-400.0,0.00018859,2]
[378461065,1754874638293,-400.0,0.00018859,2]
[378461066,1754874638303,-766.14,0.00018859,2]
[378461067,1754874638313,-1470.03,0.00018859,2]
[378461068,1754874638322,-1108.46,0.00018859,2]
[378461069,1754874638332,-781.51,0.00018859,2]
[378461070,1754874638341,-400.0,0.00018859,2]
[378461071,1754874638351,-400.0,0.00018859,2]
[378461072,1754874638360,-400.0,0.00018859,2]
[378461073,1754874638369,-400.0,0.00018859,2]
[378461074,1754874638379,-558.48,0.00018859,2]
[378461075,1754874638390,-1939.61,0.00018859,2]
[378461076,1754874638400,-491.51,0.00018859,2]
[378461077,1754874638410,-1732.8,0.00018859,2]
[378461078,1754874638420,-597.1,0.00018859,2]
[378461079,1754874638429,-400.0,0.00018859,2]
[378461080,1754874638438,-477.99,0.00018859,2]
[378461081,1754874638447,-1054.0,0.00018859,2]
[378461082,1754874638458,-539.65,0.00018859,2]
[378461083,1754874638467,-670.74,0.00018859,2]
[378461084,1754874638476,-400.0,0.00018859,2]
[378461085,1754874638485,-565.25,0.00018859,2]
[378461086,1754874638494,-400.0,0.00018859,2]
[378461087,1754874638504,-902.69,0.00018859,2]
[378461088,1754874638513,-400.0,0.00018859,2]
[378461089,1754874638522,-400.0,0.00018859,2]
[378461090,1754874638531,-400.0,0.00018859,2]
[378461091,1754874638541,-400.0,0.00018859,2]
[378461092,1754874638551,-400.0,0.00018859,2]
[378461093,1754874638560,-1790.21,0.00018859,2]
[378461094,1754874638571,-400.0,0.00018859,2]
[378461095,1754874638581,-630.09,0.00018859,2]
[378461096,1754874638591,-400.0,0.00018859,2]
[378461097,1754874638601,-400.0,0.00018859,2]
[378461098,1754874638610,-1415.5,0.00018859,2]
[378461099,1754874638622,-400.0,0.00018859,2]
[378461100,1754874638632,-430.28,0.00018859,2]
[378461101,1754874638642,-400.0,0.00018859,2]
[378461102,1754874638652,-916.7,0.00018859,2]
[378461103,1754874638662,-820.92,0.00018859,2]
[378461104,1754874638672,-400.0,0.00018859,2]
[378461105,1754874638682,-400.0,0.00018859,2]
[378461106,1754874638692,-400.0,0.00018859,2]
[378461107,1754874638702,-400.0,0.00018859,2]
[378461108,1754874638712,-747.75,0.00018859,2]
[378461109,1754874638722,-649.83,0.00018859,2]
[378461110,1754874638731,-2577.93,0.00018859,2]
[378461111,1754874638742,-1214.39,0.00018859,2]
[378461112,1754874638753,-400.0,0.00018859,2]
[378461113,1754874638763,-1051.44,0.00018859,2]
[378461114,1754874638772,-1558.19,0.00018859,2]
[378461115,1754874638781,-773.87,0.00018859,2]
[378461116,1754874638791,-400.0,0.00018859,2]
[378461117,1754874638801,-400.0,0.00018859,2]
[378461118,1754874638811,-1686.06,0.00018859,2]
[378461119,1754874638822,-400.0,0.00018859,2]
[378461120,1754874638831,-400.0,0.00018859,2]
[378461121,1754874638841,-659.16,0.00018859,2]
[378461122,1754874638850,-400.0,0.00018859,2]
[378461123,1754874638860,-616.44,0.00018859,2]
[378461124,1754874638869,-400.0,0.00018859,2]
[378461125,1754874638878,-757.94,0.00018859,2]
[378461126,1754874638887,-500.0,0.00018859,2]
[378461127,1754874638896,-400.0,0.00018859,2]
[378461128,1754874638906,-400.0,0.00018859,2]
[378461129,1754874638916,-400.0,0.00018859,2]
[378461130,1754874638925,-400.0,0.00018859,2]
[378461131,1754874638935,-1325.7,0.00018859,2]
[378461132,1754874638945,-1770.86,0.00018859,2]
[378461133,1754874638954,-1464.06,0.00018859,2]
[378461134,1754874638963,-400.0,0.00018859,2]
[378461135,1754874638973,-400.0,0.00018859,2]
[378461136,1754874638982,-400.0,0.00018859,2]
[378461137,1754874638991,-400.0,0.00018859,2]
[378461138,1754874639001,-400.0,0.00018859,2]
[378461139,1754874639011,-1022.96,0.00018859,2]
[378461140,1754874639021,-400.0,0.00018859,2]
[378461141,1754874639031,-400.0,0.00018859,2]
[378461142,1754874639041,-400.0,0.00018859,2]
[378461143,1754874639050,-481.52,0.00018859,2]
[378461144,1754874639060,-400.0,0.00018859,2]
[378461145,1754874639071,-400.0,0.00018859,2]
[378461146,1754874639080,-1161.96,0.00018859,2]
[378461147,1754874639090,-400.0,0.00018859,2]
[378461148,1754874639099,-1593.25,0.00018859,2]
[378461149,1754874639109,-400.0,0.00018859,2]
[378461150,1754874639119,-495.16,0.00018859,2]
[378461151,1754874639129,-2458.19,0.00018859,2]
[378461152,1754874639138,-1629.74,0.00018859,2]
[378461153,1754874639148,-426.91,0.00018859,2]
[378461154,1754874639159,-403.78,0.00018859,2]
[378461155,1754874639169,-400.0,0.00018859,2]
[378461156,1754874639178,-1695.22,0.00018859,2]
[378461157,1754874639188,-400.0,0.00018859,2]
[378461158,1754874639197,-400.0,0.00018859,2]
[378461159,1754874639207,-400.0,0.00018859,2]
[378461160,1754874639217,-400.0,0.00018859,2]
[378461161,1754874639228,-476.35,0.00018859,2]
[378461162,1754874639238,-400.0,0.00018859,2]
[378461163,1754874639247,-400.0,0.00018859,2]
[378461164,1754874639257,-400.0,0.00018859,2]
[378461165,1754874639266,-400.0,0.00018859,2]
[378461166,1754874639276,-400.0,0.00018859,2]
[378461167,1754874639286,-1264.86,0.00018859,2]
[378461168,1754874639296,-1178.35,0.00018859,2]
[378461169,1754874639306,-400.0,0.00018859,2]
[378461170,1754874639316,-400.0,0.00018859,2]
[378461171,1754874639325,-494.29,0.00018859,2]
[378461172,1754874639335,-1247.08,0.00018859,2]
[378461173,1754874639344,-606.9,0.00018859,2]
[378461174,1754874639354,-400.0,0.00018859,2]
[378461175,1754874639364,-400.0,0.00018859,2]
[378461176,1754874639374,-732.1,0.00018859,2]
[378461177,1754874639383,-400.0,0.00018859,2]
[378461178,1754874639393,-1173.49,0.00018859,2]
[378461179,1754874639403,-1350.42,0.00018859,2]
[378461180,1754874639412,-2005.92,0.00018859,2]
[378461181,1754874639422,-400.0,0.00018859,2]
[378461182,1754874639432,-400.0,0.00018859,2]
[378461183,1754874639441,-400.0,0.00018859,2]
[378461184,1754874639451,-830.43,0.00018859,2]
[378461185,1754874639461,-2233.96,0.00018859,2]
[378461186,1754874639470,-529.4090264,0.00018859,2]
[378461187,1754874639480,-403.71999419,0.00018859,2]
[378461188,1754874639489,-400.0,0.00018859,2]
[378461189,1754874639499,-1272.05,0.00018859,2]
[378461190,1754874639509,-400.0,0.00018859,2]
[378461191,1754874639518,-400.0,0.00018859,2]
[378461192,1754874639528,-400.0,0.00018859,2]
[378461193,1754874639538,-400.0,0.00018859,2]
[378461195,1754874639548,-794.17,0.00018859,2]
[378461196,1754874639557,-400.0,0.00018859,2]
[378461198,1754874639569,-785.59,0.00018859,2]
[378461199,1754874639579,-400.0,0.00018859,2]
[378461200,1754874639590,-400.0,0.00018859,2]
[378461201,1754874639842,-400.0,0.00018859,2]
[378461202,1754874639852,-551.61,0.00018859,2]
[378461203,1754874639861,-966.06,0.00018859,2]
[378461204,1754874639871,-400.0,0.00018859,2]
[378461205,1754874639880,-400.0,0.00018859,2]
[378461206,1754874639890,-4555.69,0.00018859,2]
[378461207,1754874639899,-400.0,0.00018859,2]
[378461208,1754874639911,-1733.7,0.00018859,2]
[378461209,1754874639924,-474.7074979,0.00018859,2]
[378461210,1754874639935,-400.0,0.00018859,2]
[378461211,1754874639944,-622.03,0.00018859,2]
[378461212,1754874639953,-400.0,0.00018859,2]
[378461213,1754874639963,-713.1,0.00018859,2]
[378461214,1754874639973,-670.62,0.00018859,2]
[378461215,1754874639982,-400.0,0.00018859,2]
[378461216,1754874639992,-997.26,0.00018859,2]
[378461217,1754874640001,-400.0,0.00018859,2]
[378461218,1754874640011,-677.48,0.00018859,2]
[378461219,1754874640020,-517.49,0.00018859,2]
[378461220,1754874640030,-1267.24,0.00018859,2]
[378461221,1754874640039,-400.0,0.00018859,2]
[378461223,1754874640049,-400.0,0.00018859,2]
[378461225,1754874640058,-400.0,0.00018859,2]
[378461227,1754874640070,-400.0,0.00018859,2]
[378461229,1754874640079,-3045.31,0.00018859,2]
[378461230,1754874640089,-400.0,0.00018859,2]
[378461231,1754874640098,-400.0,0.00018859,2]
[378461232,1754874640108,-1023.94,0.00018859,2]
[378461233,1754874640118,-400.0,0.00018859,2]
[378461234,1754874640127,-400.0,0.00018859,2]
[378461235,1754874640139,-400.0,0.00018859,2]
[378461236,1754874640148,-400.0,0.00018859,2]
[378461237,1754874640159,-496.85241866,0.00018859,2]
[378461238,1754874640169,-400.0,0.00018859,2]
[378461239,1754874640180,-400.0,0.00018859,2]
[378461240,1754874640191,-1089.21,0.00018859,2]
[378461241,1754874640200,-400.0,0.00018859,2]
[378461242,1754874640210,-554.59,0.00018859,2]
[378461243,1754874640220,-457.74,0.00018859,2]
[378461244,1754874640230,-400.0,0.00018859,2]
[378461245,1754874640239,-3299.65,0.00018859,2]
[378461246,1754874640249,-1474.89,0.00018859,2]
[378461247,1754874640258,-400.0,0.00018859,2]
[378461248,1754874640268,-529.1,0.00018859,2]
[378461249,1754874640278,-400.0,0.00018859,2]
[378461250,1754874640287,-1117.36,0.00018859,2]
[378461251,1754874640296,-964.28,0.00018859,2]
[378461252,1754874640306,-500.0,0.00018859,2]
[378461253,1754874640316,-400.0,0.00018859,2]
[378461254,1754874640326,-1712.12,0.00018859,2]
[378461255,1754874640335,-659.0,0.00018859,2]
[378461256,1754874640345,-985.78,0.00018859,2]
[378461257,1754874640354,-708.7,0.00018859,2]
[378461258,1754874640364,-1051.48,0.00018859,2]
[378461259,1754874640374,-400.0,0.00018859,2]
[378461260,1754874640383,-1489.85,0.00018859,2]
[378461261,1754874640393,-400.0,0.00018859,2]
[378461262,1754874640402,-612.77,0.00018859,2]
[378461263,1754874640411,-400.0,0.00018859,2]
[378461264,1754874640421,-400.0,0.00018859,2]
[378461265,1754874640432,-880.38,0.00018859,2]
[378461266,1754874640442,-846.79,0.00018859,2]
[378461267,1754874640451,-400.0,0.00018859,2]
[378461268,1754874640462,-400.0,0.00018859,2]
[378461269,1754874640471,-400.0,0.00018859,2]
[378461270,1754874640482,-400.0,0.00018859,2]
[378461271,1754874640491,-623.7,0.00018859,2]
[378461272,1754874640501,-400.0,0.00018859,2]
[378461273,1754874640511,-400.0,0.00018859,2]
[378461274,1754874640521,-911.46,0.00018859,2]
[378461275,1754874640530,-400.0,0.00018859,2]
[378461276,1754874640540,-487.45,0.00018859,2]
[378461277,1754874640551,-1306.0,0.00018859,2]
[378461278,1754874640560,-400.0,0.00018859,2]
[378461279,1754874640571,-400.0,0.00018859,2]
[378461280,1754874640580,-714.62,0.00018859,2]
[378461281,1754874640590,-400.0,0.00018859,2]
[378461282,1754874640600,-2851.38,0.00018859,2]
[378461283,1754874640610,-400.0,0.00018859,2]
[378461284,1754874640624,-1392.53,0.00018859,2]
[378461285,1754874640635,-569.42,0.00018859,2]
[378461286,1754874640644,-400.0,0.00018859,2]
[378461287,1754874640654,-400.0,0.00018859,2]
[378461288,1754874640665,-1129.73,0.00018859,2]
[378461289,1754874640675,-400.0,0.00018859,2]
[378461290,1754874640685,-400.0,0.00018859,2]
[378461291,1754874640695,-400.0,0.00018859,2]
[378461292,1754874640705,-400.0,0.00018859,2]
[378461293,1754874640715,-1229.23,0.00018859,2]
[378461294,1754874640724,-400.0,0.00018859,2]
[378461295,1754874640733,-400.0,0.00018859,2]
[378461296,1754874640743,-400.0,0.00018859,2]
[378461297,1754874640753,-901.84,0.00018859,2]
[378461298,1754874640762,-400.0,0.00018859,2]
[378461299,1754874640772,-400.0,0.00018859,2]
[378461300,1754874640781,-400.0,0.00018859,2]
[378461301,1754874640791,-1840.13,0.00018859,2]
[378461302,1754874640800,-400.0,0.00018859,2]
[378461303,1754874640810,-400.0,0.00018859,2]
[378461304,1754874640820,-538.27,0.00018859,2]
[378461305,1754874640830,-440.46,0.00018859,2]
[378461306,1754874640841,-1594.69,0.00018859,2]
[378461307,1754874640850,-405.64,0.00018859,2]
[378461308,1754874640859,-846.67,0.00018859,2]
[378461309,1754874640870,-961.49,0.00018859,2]
[378461310,1754874640879,-400.0,0.00018859,2]
[378461311,1754874640889,-623.31,0.00018859,2]
[378461312,1754874640899,-586.65,0.00018859,2]
[378461313,1754874640908,-250.08694935,0.00018859,2]
[378461314,1754874640918,-400.0,0.00018859,2]
[378461315,1754874640928,-400.0,0.00018859,2]
[378461316,1754874640937,-400.0,0.00018859,2]
[378461317,1754874640948,-699.2,0.00018859,2]
[378461318,1754874640958,-400.0,0.00018859,2]
[378461319,1754874640968,-587.02,0.00018859,2]
[378461320,1754874640977,-914.75,0.00018859,2]
[378461321,1754874640987,-400.0,0.00018859,2]
[378461322,1754874640996,-2611.39,0.00018859,2]
[378461323,1754874641006,-456.53,0.00018859,2]
[378461324,1754874641015,-400.0,0.00018859,2]
[378461325,1754874641025,-263.03530474,0.00018859,2]
[378461326,1754874641034,-400.0,0.00018859,2]
[378461327,1754874641044,-400.0,0.00018859,2]
[378461328,1754874641054,-888.26,0.00018859,2]
[378461329,1754874641063,-400.0,0.00018859,2]
[378461330,1754874641074,-400.0,0.00018859,2]
[378461331,1754874641085,-490.25,0.00018859,2]
[378461332,1754874641094,-400.0,0.00018859,2]
[378461333,1754874641105,-544.81,0.00018859,2]
[378461334,1754874641115,-400.0,0.00018859,2]
[378461335,1754874641124,-412.85,0.00018859,2]
[378461336,1754874641134,-1846.64,0.00018859,2]
[378461337,1754874641143,-651.61,0.00018859,2]
[378461338,1754874641152,-400.0,0.00018859,2]
[378461339,1754874641162,-400.0,0.00018859,2]
[378461340,1754874641171,-400.0,0.00018859,2]
[378461341,1754874641180,-2775.75,0.00018859,2]
[378461342,1754874641189,-400.0,0.00018859,2]
[378461343,1754874641198,-400.0,0.00018859,2]
[378461344,1754874641208,-400.0,0.0001886,2]
[378461345,1754874641217,-1248.68,0.0001886,2]
[378461346,1754874641227,-427.34,0.0001886,2]
[378461347,1754874641236,-451.37,0.0001886,2]
[378461348,1754874641245,-400.0,0.0001886,2]
[378461349,1754874641255,-400.0,0.0001886,2]
[378461350,1754874641264,-400.0,0.0001886,2]
[378461351,1754874641273,-785.11,0.0001886,2]
[378461352,1754874641283,-400.0,0.0001886,2]
[378461353,1754874641292,-400.0,0.0001886,2]
[378461354,1754874641301,-400.0,0.0001886,2]
[378461355,1754874641311,-400.0,0.0001886,2]
[378461356,1754874641320,-400.0,0.0001886,2]
[378461357,1754874641329,-400.0,0.0001886,2]
[378461358,1754874641338,-1147.84,0.0001886,2]
[378461359,1754874641347,-957.99,0.0001886,2]
[378461360,1754874641359,-866.56,0.0001886,2]
[378461361,1754874641369,-400.0,0.0001886,2]
[378461362,1754874641379,-400.0,0.0001886,2]
[378461363,1754874641388,-585.77,0.0001886,2]
[378461364,1754874641397,-968.06,0.0001886,2]
[378461365,1754874641407,-1185.57,0.0001886,2]
[378461366,1754874641416,-400.0,0.0001886,2]
[378461367,1754874641426,-400.0,0.0001886,2]
[378461368,1754874641435,-1945.73,0.0001886,2]
[378461369,1754874641444,-776.94,0.0001886,2]
[378461370,1754874641454,-456.48,0.0001886,2]
[378461371,1754874641463,-670.59,0.0001886,2]
[378461372,1754874641473,-729.47,0.0001886,2]
[378461373,1754874641482,-400.0,0.0001886,2]
[378461374,1754874641492,-1487.99,0.0001886,2]
[378461375,1754874641501,-1182.14,0.0001886,2]
[378461376,1754874641511,-1976.41,0.0001886,2]
[378461377,1754874641520,-965.26,0.0001886,2]
[378461378,1754874641530,-1504.54,0.0001886,2]
[378461379,1754874641539,-500.0,0.0001886,2]
[378461380,1754874641548,-1687.97,0.0001886,2]
[378461381,1754874641558,-1103.16,0.0001886,2]
[378461382,1754874641567,-1004.53,0.0001886,2]
[378461383,1754874641577,-3626.74,0.0001886,2]
[378461384,1754874641587,-506.84,0.0001886,2]
[378461385,1754874641596,-989.66,0.0001886,2]
[378461386,1754874641605,-1100.63,0.0001886,2]
[378461387,1754874641616,-704.01,0.0001886,2]
[378461388,1754874641627,-1234.13,0.0001886,2]
[378461389,1754874641637,-14194.45,0.0001886,2]
[378461390,1754874641646,-2952.31,0.0001886,2]
[378461391,1754874641655,-466.75,0.0001886,2]
[378461392,1754874641666,-2409.39,0.0001886,2]
[378461393,1754874641676,-737.59,0.0001886,2]
[378461394,1754874641685,-911.1,0.0001886,2]
[378461395,1754874641696,-2153.28,0.0001886,2]
[378461396,1754874641706,-1031.63,0.0001886,2]
[378461397,1754874641715,-1063.6,0.0001886,2]
[378461398,1754874641724,-525.7,0.0001886,2]
[378461399,1754874641733,-286.68271169,0.0001886,2]
[378461400,1754874641743,-632.32,0.0001886,2]
[378461401,1754874641752,-461.32,0.0001886,2]
[378461402,1754874641761,-637.12,0.0001886,2]
[378461403,1754874641771,-691.6,0.0001886,2]
[378461404,1754874641780,-400.0,0.0001886,2]
[378461405,1754874641789,-662.72,0.0001886,2]
[378461406,1754874641799,-1540.85,0.0001886,2]
[378461407,1754874641809,-400.0,0.0001886,2]
[378461408,1754874641819,-465.33,0.0001886,2]
[378461409,1754874641828,-2201.25,0.0001886,2]
[378461410,1754874641837,-815.55,0.0001886,2]
[378461411,1754874641847,-2876.78,0.0001886,2]
[378461412,1754874641856,-510.67,0.0001886,2]
[378461413,1754874641865,-1956.27,0.0001886,2]
[378461414,1754874641874,-400.0,0.0001886,2]
[378461415,1754874641884,-2392.92,0.0001886,2]
[378461416,1754874641894,-723.31,0.0001886,2]
[378461417,1754874641904,-1628.24,0.0001886,2]
[378461418,1754874641919,-1962.93,0.0001886,2]
[378461419,1754874641931,-1262.73,0.0001886,2]
[378461420,1754874641940,-400.0,0.0001886,2]
[378461421,1754874641950,-1632.08,0.0001886,2]
[378461422,1754874641966,-5508.71,0.0001886,2]
[378461423,1754874641975,-1773.25,0.0001886,2]
[378461424,1754874641985,-2040.59,0.0001886,2]
[378461425,1754874641994,-510.13,0.0001886,2]
[378461426,1754874642003,-626.75,0.0001886,2]
[378461427,1754874642013,-600.71,0.0001886,2]
[378461428,1754874642022,-400.0,0.0001886,2]
[378461429,1754874642031,-400.0,0.0001886,2]
[378461430,1754874642040,-477.61,0.0001886,2]
[378461431,1754874642050,-746.28,0.0001886,2]
[378461432,1754874642059,-1821.89,0.0001886,2]
[378461433,1754874642069,-400.0,0.0001886,2]
[378461434,1754874642078,-400.0,0.0001886,2]
[378461435,1754874642088,-400.0,0.0001886,2]
[378461436,1754874642097,-422.09,0.0001886,2]
[378461437,1754874642107,-2064.5,0.0001886,2]
[378461438,1754874642116,-1792.32,0.0001886,2]
[378461439,1754874642125,-2081.12,0.0001886,2]
[378461440,1754874642135,-755.43,0.0001886,2]
[378461441,1754874642144,-150.0,0.00018862,2]
[378461442,1754874642153,-150.0,0.00018862,2]
[378461443,1754874642162,-150.0,0.00018862,2]
[378461444,1754874642172,-500.0,0.00018862,2]
[378461445,1754874642181,-500.0,0.00018862,2]
[378461446,1754874642190,-150.0,0.00018862,2]
[378461447,1754874642200,-150.0,0.00018862,2]
[378461448,1754874642211,-500.0,0.00018862,2]
[378461449,1754874642220,-150.0,0.00018862,2]
[378461450,1754874642229,-1015.0,0.00018862,2]
[378461451,1754874642238,-651.0,0.00018862,2]
[378461452,1754874642247,-150.0,0.00018862,2]
[378461453,1754874642256,-150.0,0.00018862,2]
[378461454,1754874642266,-150.0,0.00018862,2]
[378461455,1754874642275,-150.0,0.00018862,2]
[378461456,1754874642284,-212.02628065,0.00018862,2]
[378461457,1754874642294,-841.55003492,0.00018869,2]
[378461458,1754874642303,-212.81552629,0.00018869,2]
[378461459,1754874642313,-500.0,0.00018873,2]
[378461460,1754874642323,-500.0,0.00018873,2]
[378461461,1754874642333,-500.0,0.00018873,2]
[378461462,1754874642343,-500.0,0.00018873,2]
[378461463,1754874642352,-502.17369348,0.00018873,2]
[378461464,1754874642362,-500.0,0.00018873,2]
[378461465,1754874642371,-500.0,0.00018873,2]
[378461466,1754874642381,-500.0,0.00018873,2]
[378461467,1754874642391,-500.0,0.00018873,2]
[378461468,1754874642400,-370.46610602,0.00018873,2]
[378461469,1754874642409,-503.39020384,0.00018873,2]
[378461471,1754874642418,-500.0,0.00018873,2]
[378461473,1754874642428,-500.0,0.00018873,2]
[378461475,1754874642437,-161.63628503,0.00018873,2]
[378461477,1754874642447,-500.0,0.00018873,2]
[378461479,1754874642456,-500.0,0.00018873,2]
[378461480,1754874642465,-500.0,0.00018873,2]
[378461482,1754874642474,-500.0,0.00018873,2]
[378461484,1754874642483,-308.4471578,0.00018873,2]
[378461486,1754874642493,-500.0,0.00018873,2]
[378461488,1754874642502,-500.0,0.00018873,2]
[378461490,1754874642511,-500.0,0.00018873,2]
[378461492,1754874642521,-500.0,0.00018873,2]
[378461494,1754874642532,-500.0,0.00018873,2]
[378461496,1754874642542,-500.0,0.00018873,2]
[378461498,1754874642551,-500.0,0.00018873,2]
[378461500,1754874642560,-500.0,0.00018873,2]
[378461502,1754874642570,-500.0,0.00018873,2]
[378461504,1754874642580,-500.0,0.00018873,2]
[378461506,1754874642590,-500.0,0.00018873,2]
[378461509,1754874642601,-500.0,0.00018873,2]
[378461511,1754874642611,-958.0,0.00018881,2]
[378461513,1754874642625,-1654.0,0.00018881,2]
[378461515,1754874642635,-711.87208464,0.00018881,2]
[378461516,1754874642646,-400.0,0.00018884,2]
[378461518,1754874642655,-3064.02,0.00018884,2]
[378461520,1754874642666,-1785.74,0.00018884,2]
[378461522,1754874642675,-723.96,0.00018884,2]
[378461524,1754874642685,-2007.58,0.00018884,2]
[378461526,1754874642696,-400.0,0.00018884,2]
[378461527,1754874642706,-1342.97,0.00018884,2]
[378461528,1754874642715,-1061.21,0.00018884,2]
[378461529,1754874642725,-1175.5,0.00018884,2]
[378461531,1754874642734,-3890.99,0.00018884,2]
[378461533,1754874642743,-504.42,0.00018884,2]
[378461535,1754874642753,-1311.98,0.00018884,2]
[378461536,1754874642763,-932.03,0.00018884,2]
[378461537,1754874642772,-863.76,0.00018884,2]
[378461538,1754874642781,-400.0,0.00018884,2]
[378461539,1754874642794,-631.31,0.00018884,2]
[378461540,1754874642810,-400.0,0.00018884,2]
[378461541,1754874642820,-773.77,0.00018884,2]
[378461542,1754874642829,-400.0,0.00018884,2]
[378461543,1754874642839,-400.0,0.00018884,2]
[378461544,1754874642849,-2620.87,0.00018884,2]
[378461545,1754874642858,-1662.4,0.00018884,2]
[378461546,1754874642868,-400.0,0.00018884,2]
[378461547,1754874642877,-403.29,0.00018884,2]
[378461548,1754874642886,-2047.95,0.00018884,2]
[378461549,1754874642895,-1021.99,0.00018884,2]
[378461550,1754874642905,-400.0,0.00018884,2]
[378461551,1754874642915,-532.63,0.00018884,2]
[378461552,1754874642925,-400.0,0.00018884,2]
[378461553,1754874642936,-841.55003492,0.00018884,2]
[378461554,1754874642945,-212.81552629,0.00018884,2]
[378461555,1754874642955,-211.70500488,0.00018896,2]
[378461556,1754874642964,-457.79793389,0.00018896,2]
[378461557,1754874642974,-842.72722232,0.00018896,2]
[378461558,1754874642983,-2000.0,0.000189,2]
[378461559,1754874642992,-328.24,0.000189,2]
[378461560,1754874643002,-1000.0,0.000189,2]
[378461561,1754874643011,-841.55003492,0.000189,2]
[378461562,1754874643021,-178.55467357,0.000189,2]
[378461563,1754874643031,-212.81552629,0.000189,2]
[378461564,1754874643041,-150.0,0.00018919,2]
[378461565,1754874643050,-320.95338,0.0001892,2]
[378461566,1754874643060,-1974.45758811,0.00018943,2]
[378461567,1754874643070,-1958.30825818,0.00018944,2]
[378461568,1754874643079,-2800.12803956,0.00018944,2]
[378461569,1754874643089,-527.58213739,0.00018944,2]
[378461570,1754874643099,-13521.57586566,0.00018944,2]
[378461571,1754874643108,-7189.05295778,0.00018944,2]